bitfinex-derivatives/quotes_BTCF0:USTF0_20250823
["timestamp","ask_amount","ask_price","bid_price","bid_amount"]
[1755991144075,0.08028,115340.0,115330.0,1.93302632]
[1755991144576,0.08028,115340.0,115330.0,1.93298632]
[1755991151288,0.08028,115340.0,115330.0,0.60029674]
[1755991151478,0.08028,115340.0,115330.0,1.93254632]
[1755991155190,0.08028,115340.0,115330.0,2.08868369]
[1755991161494,0.08028,115340.0,115330.0,1.93254632]
[1755991168193,0.08028,115340.0,115330.0,1.57174632]
[1755991168399,0.08028,115340.0,115330.0,1.93254632]
[1755991169198,0.08028,115340.0,115330.0,1.57174632]
[1755991169399,0.08028,115340.0,115330.0,1.93254632]
[1755991171401,0.08028,115340.0,115330.0,1.39601674]
[1755991171591,0.08028,115340.0,115330.0,1.93254632]
[1755991179104,0.4922713,115350.0,115330.0,1.93254632]
[1755991179308,0.5169913,115350.0,115340.0,0.89783566]
[1755991179510,0.1561913,115350.0,115340.0,0.89783566]
[1755991179706,0.5169913,115350.0,115340.0,0.89783566]
[1755991179901,0.43027,115350.0,115340.0,0.89783566]
[1755991182309,0.43027,115350.0,115340.0,0.89983566]
[1755991183310,0.43027,115350.0,115340.0,0.90083566]
[1755991183810,0.43027,115350.0,115340.0,0.89983566]
[1755991184011,0.43027,115350.0,115340.0,0.90083566]
[1755991184815,0.43027,115350.0,115340.0,0.89983566]
[1755991185017,0.43027,115350.0,115340.0,1.01012323]
[1755991185814,0.43027,115350.0,115340.0,0.85400545]
[1755991186209,0.43027,115350.0,115340.0,0.74471788]
[1755991187213,0.43027,115350.0,115340.0,0.74371788]
[1755991187413,0.43027,115350.0,115340.0,0.74471788]
[1755991187613,0.06947,115350.0,115340.0,0.74471788]
[1755991187818,0.43027,115350.0,115340.0,0.74471788]
[1755991188223,0.43027,115350.0,115340.0,0.74371788]
[1755991188409,0.43027,115350.0,115340.0,0.74471788]
[1755991188815,0.43027,115350.0,115340.0,0.74271788]
[1755991189114,0.43027,115350.0,115340.0,0.74471788]
[1755991192418,0.43027,115350.0,115340.0,0.74271788]
[1755991192618,0.43027,115350.0,115340.0,0.74471788]
[1755991195114,0.43027,115350.0,115340.0,0.85400545]
[1755991195619,0.43027,115350.0,115340.0,0.85200545]
[1755991195821,0.43027,115350.0,115340.0,0.74471788]
[1755991197022,0.43027,115350.0,115340.0,0.74371788]
[1755991197221,0.43027,115350.0,115340.0,0.74471788]
[1755991197521,0.44184,115350.0,115340.0,0.74471788]
[1755991198223,0.44184,115350.0,115340.0,0.74271788]
[1755991198425,0.44184,115350.0,115340.0,0.74471788]
[1755991198921,0.08104,115350.0,115340.0,0.74471788]
[1755991199510,0.08104,115350.0,115340.0,0.90083566]
[1755991199920,0.44184,115350.0,115340.0,0.89983566]
[1755991200125,0.44184,115350.0,115340.0,0.90083566]
[1755991200624,0.5285608,115350.0,115340.0,0.90083566]
[1755991202426,0.5285608,115350.0,115340.0,0.89883566]
[1755991202627,0.5285608,115350.0,115340.0,0.90083566]
[1755991204727,0.1677608,115350.0,115340.0,0.90083566]
[1755991204925,0.5285608,115350.0,115340.0,0.90083566]
[1755991213731,0.5285608,115350.0,115340.0,0.920351]
[1755991214038,0.5285608,115350.0,115340.0,0.918351]
[1755991214236,0.1677608,115350.0,115340.0,0.920351]
[1755991214436,0.5285608,115350.0,115340.0,0.920351]
[1755991223651,0.1677608,115350.0,115340.0,0.920351]
[1755991223838,0.5285608,115350.0,115340.0,0.920351]
[1755991225147,0.1677608,115350.0,115340.0,0.920351]
[1755991225355,0.5285608,115350.0,115340.0,0.920351]
[1755991227752,0.5285608,115350.0,115340.0,0.76423322]
[1755991229553,0.1677608,115350.0,115340.0,0.76423322]
[1755991229855,0.5285608,115350.0,115340.0,0.76423322]
[1755991232553,0.5285608,115350.0,115340.0,0.920351]
[1755991233154,0.1677608,115350.0,115340.0,0.920351]
[1755991233456,0.5285608,115350.0,115340.0,0.920351]
[1755991237464,0.1677608,115350.0,115340.0,0.920351]
[1755991237661,0.5285608,115350.0,115340.0,0.920351]
[1755991239760,0.5285608,115350.0,115340.0,0.918351]
[1755991239960,0.5285608,115350.0,115340.0,0.920351]
[1755991240150,0.1677608,115350.0,115340.0,0.920351]
[1755991240354,0.5285608,115350.0,115340.0,0.920351]
[1755991240662,0.5285608,115350.0,115340.0,0.919351]
[1755991240856,0.5285608,115350.0,115340.0,0.920351]
[1755991241254,0.1677608,115350.0,115340.0,0.920351]
[1755991241556,0.5285608,115350.0,115340.0,0.920351]
[1755991243165,1.3233208,115350.0,115340.0,0.920351]
[1755991245564,1.3233208,115350.0,115340.0,0.76423322]
[1755991255171,0.9625208,115350.0,115340.0,0.76423322]
[1755991255373,1.3233208,115350.0,115340.0,0.76423322]
[1755991255858,1.3233208,115350.0,115340.0,0.920351]
[1755991256562,1.3233208,115350.0,115340.0,0.38382142]
[1755991256761,1.3233208,115350.0,115340.0,0.920351]
[1755991259073,1.3233208,115350.0,115340.0,0.38382142]
[1755991259273,1.3233208,115350.0,115340.0,0.920351]
[1755991260172,1.3233208,115350.0,115340.0,0.8336227]
[1755991261172,1.3233208,115350.0,115340.0,0.9203507]
[1755991261374,1.3233208,115350.0,115340.0,0.8336227]
[1755991262469,1.4035908,115350.0,115340.0,0.8336227]
[1755991262774,1.4035908,115350.0,115340.0,0.29709312]
[1755991263075,1.4035908,115350.0,115340.0,0.8336227]
[1755991263275,0.52211,115350.0,115340.0,0.9203507]
[1755991263573,1.31647,115350.0,115340.0,1.02964724]
[1755991263973,1.31647,115350.0,115340.0,0.87352946]
[1755991265574,1.31647,115350.0,115340.0,0.87152946]
[1755991265775,1.31647,115350.0,115340.0,0.87352946]
[1755991265964,1.31647,115350.0,115340.0,0.87252946]
[1755991266166,1.31647,115350.0,115340.0,0.87352946]
[1755991269580,0.95567,115350.0,115340.0,0.87352946]
[1755991269981,1.31647,115350.0,115340.0,0.87352946]
[1755991271384,0.52211,115350.0,115340.0,0.87352946]
[1755991271679,0.36803,115360.0,115350.0,0.2052901]
[1755991271986,1.16227,115360.0,115350.0,0.74181968]
[1755991273876,1.16723,115360.0,115350.0,0.74181968]
[1755991274385,1.16723,115360.0,115350.0,0.74281968]
[1755991274981,1.16723,115360.0,115350.0,0.74481968]
[1755991275282,1.16723,115360.0,115350.0,0.75346101]
[1755991275786,1.16723,115360.0,115350.0,0.86275755]
[1755991277576,1.16723,115360.0,115350.0,0.75346101]
[1755991277975,1.16723,115360.0,115350.0,0.86275755]
[1755991279888,1.16723,115360.0,115350.0,0.93062705]
[1755991281887,0.37299,115360.0,115350.0,0.93062705]
[1755991282079,0.36576,115360.0,115350.0,0.93062705]
[1755991282279,0.79404,115360.0,115350.0,1.18213051]
[1755991282487,0.79404,115360.0,115350.0,1.33824829]
[1755991285588,1.17763886,115370.0,115360.0,0.2052826]
[1755991285786,1.17763886,115370.0,115360.0,0.47354739]
[1755991287693,1.17763886,115370.0,115360.0,0.58261052]
[1755991287990,1.18073886,115370.0,115360.0,0.58261052]
[1755991290091,1.18073886,115370.0,115360.0,0.47354739]
[1755991290595,1.26744426,115370.0,115360.0,0.47354739]
[1755991290787,1.26744426,115370.0,115360.0,0.38683479]
[1755991291997,1.26744426,115370.0,115360.0,0.49588446]
[1755991293100,1.26744426,115370.0,115360.0,0.58259736]
[1755991298198,1.26744426,115370.0,115360.0,0.49588446]
[1755991300096,1.26744426,115370.0,115360.0,0.38683479]
[1755991301097,1.26744426,115370.0,115360.0,0.47354789]
[1755991301293,0.90664426,115370.0,115360.0,0.47354789]
[1755991301592,1.26744426,115370.0,115360.0,0.47354789]
[1755991304096,1.26744426,115370.0,115360.0,0.38683479]
[1755991308195,0.90664426,115370.0,115360.0,0.38683479]
[1755991308391,1.26744426,115370.0,115360.0,0.38683479]
[1755991309303,1.26744426,115370.0,115360.0,0.11857]
[1755991309497,1.26744426,115370.0,115360.0,0.38683479]
[1755991312106,0.90664426,115370.0,115360.0,0.38683479]
[1755991312312,1.26744426,115370.0,115360.0,0.38683479]
[1755991312610,0.90664426,115370.0,115360.0,0.38683479]
[1755991312795,1.26744426,115370.0,115360.0,0.38683479]
[1755991317108,0.90664426,115370.0,115360.0,0.38683479]
[1755991317303,1.26744426,115370.0,115360.0,0.38683479]
[1755991326318,1.26744426,115370.0,115360.0,0.49608313]
[1755991331026,0.47340426,115370.0,115360.0,0.49608313]
[1755991331233,1.26720426,115370.0,115360.0,0.49608313]
[1755991332034,1.34746426,115370.0,115360.0,0.49608313]
[1755991334234,1.34746426,115370.0,115360.0,0.22781834]
[1755991334439,1.34746426,115370.0,115360.0,0.49608313]
[1755991336339,1.34746426,115370.0,115360.0,0.38683479]
[1755991337439,0.98666426,115370.0,115360.0,0.38683479]
[1755991337640,1.34746426,115370.0,115360.0,0.38683479]
[1755991341541,0.55366426,115370.0,115360.0,0.38683479]
[1755991341844,1.34742426,115370.0,115360.0,0.38683479]
[1755991343135,1.26716426,115370.0,115360.0,0.38883479]
[1755991343847,1.26716426,115370.0,115360.0,0.38983479]
[1755991344646,1.26716426,115370.0,115360.0,0.47654449]
[1755991345347,1.34742426,115370.0,115360.0,0.47654449]
[1755991345947,0.55366426,115370.0,115360.0,0.47654449]
[1755991346449,1.34738426,115370.0,115360.0,0.47654449]
[1755991347845,1.34738426,115370.0,115360.0,0.2082797]
[1755991348146,1.34738426,115370.0,115360.0,0.47654449]
[1755991348348,1.34738426,115370.0,115360.0,0.63266227]
[1755991348549,1.26067886,115370.0,115360.0,0.63266227]
[1755991351854,1.34738036,115370.0,115360.0,0.63266227]
[1755991354652,0.98658036,115370.0,115360.0,0.63266227]
[1755991354948,1.34738036,115370.0,115360.0,0.63266227]
[1755991357456,0.98658036,115370.0,115360.0,0.63266227]
[1755991357649,1.34738036,115370.0,115360.0,0.63266227]
[1755991360554,1.34738036,115370.0,115360.0,0.63066227]
[1755991360745,1.34738036,115370.0,115360.0,0.63266227]
[1755991360948,1.34738036,115370.0,115360.0,0.63166227]
[1755991361254,1.34738036,115370.0,115360.0,0.63266227]
[1755991365155,1.34738036,115370.0,115360.0,0.47654449]
[1755991367661,0.98658036,115370.0,115360.0,0.47654449]
[1755991367861,1.34738036,115370.0,115360.0,0.47654449]
[1755991370369,1.34738036,115370.0,115360.0,0.2082797]
[1755991370665,1.34738036,115370.0,115360.0,0.47654449]
[1755991373461,0.98658036,115370.0,115360.0,0.47654449]
[1755991373766,1.34738036,115370.0,115360.0,0.47654449]
[1755991375566,0.98658036,115370.0,115360.0,0.47654449]
[1755991375866,1.34738036,115370.0,115360.0,0.47654449]
[1755991376169,1.3295415,115370.0,115360.0,0.47654449]
[1755991377966,1.3295415,115370.0,115360.0,0.63266227]
[1755991378566,0.9687415,115370.0,115360.0,0.63266227]
[1755991378960,1.3295415,115370.0,115360.0,0.63266227]
[1755991379160,0.9687415,115370.0,115360.0,0.63266227]
[1755991379361,1.3295415,115370.0,115360.0,0.63266227]
[1755991381170,0.9687415,115370.0,115360.0,0.63266227]
[1755991381365,1.3295415,115370.0,115360.0,0.63266227]
[1755991381771,1.3295415,115370.0,115360.0,0.36439748]
[1755991381962,1.3295415,115370.0,115360.0,0.63266227]
[1755991384670,1.3295415,115370.0,115360.0,0.63166227]
[1755991384970,1.3295415,115370.0,115360.0,0.63266227]
[1755991386470,1.24284,115370.0,115360.0,0.63266227]
[1755991387472,1.3295411,115370.0,115360.0,0.63266227]
[1755991388474,1.24284,115370.0,115360.0,0.63266227]
[1755991388772,0.44912,115370.0,115360.0,0.63266227]
[1755991388971,1.2426,115370.0,115360.0,0.63266227]
[1755991389179,0.44912,115370.0,115360.0,0.63266227]
[1755991389568,1.24256,115370.0,115360.0,0.63266227]
[1755991390076,0.88176,115370.0,115360.0,0.63266227]
[1755991390277,0.87866,115370.0,115360.0,0.63266227]
[1755991390980,1.326161,115370.0,115360.0,0.36439748]
[1755991391278,1.326161,115370.0,115360.0,0.63266227]
[1755991391475,1.23946,115370.0,115360.0,0.63266227]
[1755991393380,1.23946,115370.0,115360.0,0.47654449]
[1755991394382,1.3292611,115370.0,115360.0,0.47654449]
[1755991394680,1.24256,115370.0,115360.0,0.47654449]
[1755991395070,1.3292611,115370.0,115360.0,0.47654449]
[1755991396981,1.24256,115370.0,115360.0,0.47654449]
[1755991397682,0.88176,115370.0,115360.0,0.47654449]
[1755991397880,1.24256,115370.0,115360.0,0.47654449]
[1755991400689,0.88176,115370.0,115360.0,0.47654449]
[1755991400986,1.24256,115370.0,115360.0,0.47654449]
[1755991403088,1.24256,115370.0,115360.0,0.63266227]
[1755991404188,0.88176,115370.0,115360.0,0.63266227]
[1755991404390,1.24256,115370.0,115360.0,0.63266227]
[1755991407494,1.329261,115370.0,115360.0,0.63266227]
[1755991408497,1.24256,115370.0,115360.0,0.63266227]
[1755991414598,1.3292626,115370.0,115360.0,0.63266227]
[1755991417399,1.3292626,115370.0,115360.0,0.47654449]
[1755991418505,1.24256,115370.0,115360.0,0.2082797]
[1755991418696,1.3292611,115370.0,115360.0,0.47654449]
[1755991419603,1.24256,115370.0,115360.0,0.47654449]
[1755991420598,0.88176,115370.0,115360.0,0.47654449]
[1755991420806,1.24256,115370.0,115360.0,0.47654449]
[1755991422807,0.88176,115370.0,115360.0,0.47654449]
[1755991427519,0.88176,115370.0,115360.0,0.74480928]
[1755991429721,0.87866,115370.0,115360.0,0.74480928]
[1755991430208,0.87834,115370.0,115360.0,0.74480928]
[1755991431720,0.87834,115370.0,115360.0,0.2082797]
[1755991431921,0.87834,115370.0,115360.0,0.74480928]
[1755991440024,0.87834,115370.0,115360.0,0.90092706]
[1755991441226,0.87834,115370.0,115360.0,1.00773706]
[1755991442425,0.87834,115370.0,115360.0,0.85161928]
[1755991446535,0.87834,115370.0,115360.0,0.96081884]
[1755991454240,0.08522,115370.0,115360.0,0.96081884]
[1755991454541,0.87802,115370.0,115360.0,0.42428926]
[1755991454837,0.87802,115370.0,115360.0,0.96081884]
[1755991455142,0.87802,115370.0,115360.0,0.85161928]
[1755991457737,0.87802,115370.0,115360.0,1.00773706]
[1755991460941,0.87802,115370.0,115360.0,0.85161928]
[1755991462642,0.87802,115370.0,115360.0,0.96083276]
[1755991474352,0.87802,115370.0,115360.0,0.69256797]
[1755991475450,0.87802,115370.0,115360.0,0.58335449]
[1755991477052,0.79776,115370.0,115360.0,0.58335449]
[1755991479153,0.79776,115370.0,115360.0,0.85161928]
[1755991479545,0.79776,115370.0,115360.0,1.00773706]
[1755991480553,0.79776,115370.0,115360.0,0.73947227]
[1755991480956,0.79776,115370.0,115360.0,1.00773706]
[1755991481356,0.79776,115370.0,115360.0,0.73947227]
[1755991488356,0.8844635,115370.0,115360.0,0.73947357]
[1755991488550,0.8875635,115370.0,115360.0,0.73947357]
[1755991489253,0.8844635,115370.0,115360.0,0.73947357]
[1755991490857,0.8844635,115370.0,115360.0,0.73847357]
[1755991491957,0.8844635,115370.0,115360.0,0.73647357]
[1755991493051,0.8844635,115370.0,115360.0,0.70292357]
[1755991493258,0.8875635,115370.0,115360.0,0.70292357]
[1755991493559,0.8875635,115370.0,115360.0,0.73740357]
[1755991494369,0.8844635,115370.0,115360.0,0.73740357]
[1755991496264,1.26289951,115370.0,115360.0,0.73740357]
[1755991497459,1.27142186,115370.0,115360.0,0.73740357]
[1755991497855,1.26289951,115370.0,115360.0,0.73740357]
[1755991498567,0.90209951,115370.0,115360.0,0.73740357]
[1755991498765,1.26289951,115370.0,115360.0,0.73740357]
[1755991500667,1.26599951,115370.0,115360.0,0.70292357]
[1755991500864,1.26599951,115370.0,115360.0,0.73663357]
[1755991501768,1.26289951,115370.0,115360.0,0.73663357]
[1755991505671,0.90209951,115370.0,115360.0,0.73663357]
[1755991505872,1.26289951,115370.0,115360.0,0.73663357]
[1755991506174,0.90209951,115370.0,115360.0,0.73663357]
[1755991506366,1.26289951,115370.0,115360.0,0.73663357]
[1755991506862,1.26289951,115370.0,115360.0,0.73763357]
[1755991507671,1.26289951,115370.0,115360.0,0.58151579]
[1755991508373,1.26289951,115370.0,115360.0,0.58051579]
[1755991509387,1.26289951,115370.0,115360.0,0.58151579]
[1755991510072,1.26289951,115370.0,115360.0,0.58051579]
[1755991511270,0.47009951,115370.0,115360.0,0.58051579]
[1755991511473,1.26217951,115370.0,115360.0,0.58051579]
[1755991512476,0.90137951,115370.0,115360.0,0.58051579]
[1755991512774,1.26217951,115370.0,115360.0,0.58051579]
[1755991513460,0.47009951,115370.0,115360.0,0.58051579]
[1755991513659,1.26209951,115370.0,115360.0,0.58051579]
[1755991515777,1.26209951,115370.0,115360.0,0.68969291]
[1755991516468,0.47009951,115370.0,115360.0,0.68969291]
[1755991516670,1.26209951,115370.0,115360.0,0.68969291]
[1755991517075,0.47009951,115370.0,115360.0,0.68969291]
[1755991517272,1.26205951,115370.0,115360.0,0.68969291]
[1755991519176,1.26205951,115370.0,115360.0,0.60298191]
[1755991519678,1.26205951,115370.0,115360.0,0.68969401]
[1755991522680,1.26205951,115370.0,115360.0,0.42142922]
[1755991522881,1.26205951,115370.0,115360.0,0.60298191]
[1755991525673,0.90125951,115370.0,115360.0,0.60298191]
[1755991525877,1.26205951,115370.0,115360.0,0.49380479]
[1755991527880,1.26515951,115370.0,115360.0,0.46009479]
[1755991528083,1.26515951,115370.0,115360.0,0.49166479]
[1755991528582,1.26515951,115370.0,115360.0,0.64778257]
[1755991530482,0.90435951,115370.0,115360.0,0.64778257]
[1755991530784,0.90435951,115370.0,115360.0,0.73449477]
[1755991531076,1.26515951,115370.0,115360.0,0.73449477]
[1755991531481,0.90435951,115370.0,115360.0,0.73449477]
[1755991531672,1.26515951,115370.0,115360.0,0.73449477]
[1755991531883,1.26515951,115370.0,115360.0,0.57837699]
[1755991532679,0.90435951,115370.0,115360.0,0.73449477]
[1755991532888,1.26515951,115370.0,115360.0,0.73449477]
[1755991538377,1.26515951,115370.0,115360.0,0.49166479]
[1755991539078,1.26483951,115370.0,115360.0,0.49166479]
[1755991539892,0.47319951,115370.0,115360.0,0.49166479]
[1755991540190,1.26483951,115370.0,115360.0,0.57837699]
[1755991540488,0.90403951,115370.0,115360.0,0.57837699]
[1755991540679,1.26483951,115370.0,115360.0,0.57837699]
[1755991541391,0.47009951,115370.0,115360.0,0.57837699]
[1755991541687,1.26169951,115370.0,115360.0,0.2234]
[1755991541890,1.26169951,115370.0,115360.0,0.49166479]
[1755991542085,1.26169951,115370.0,115360.0,0.60084459]
[1755991542399,1.26169951,115370.0,115360.0,0.3325798]
[1755991542874,1.26169951,115370.0,115360.0,0.60084459]
[1755991543393,1.26169951,115370.0,115360.0,0.3325798]
[1755991543584,1.26479951,115370.0,115360.0,0.60084459]
[1755991545794,1.26479951,115370.0,115360.0,0.3325798]
[1755991545996,1.26479951,115370.0,115360.0,0.60084459]
[1755991549299,1.26479951,115370.0,115360.0,0.3325798]
[1755991549593,1.26479951,115370.0,115360.0,0.60084459]
[1755991549902,1.26479951,115370.0,115360.0,0.3325798]
[1755991550191,1.26479951,115370.0,115360.0,0.60084459]
[1755991551798,1.26479951,115370.0,115360.0,0.49166479]
[1755991552896,1.26479951,115370.0,115360.0,0.60084507]
[1755991555394,1.26479951,115370.0,115360.0,0.33258028]
[1755991555596,1.26479951,115370.0,115360.0,0.60084507]
[1755991560689,1.26479951,115370.0,115360.0,0.53968507]
[1755991561096,1.26479951,115370.0,115360.0,0.27142028]
[1755991561299,1.7830643,115370.0,115360.0,0.20895353]
[1755991561494,1.7830643,115370.0,115360.0,0.47721832]
[1755991561692,1.7830643,115370.0,115360.0,0.39922479]
[1755991562093,1.51479951,115370.0,115360.0,0.39922479]
[1755991562491,1.51579951,115370.0,115360.0,0.50840507]
[1755991562691,1.51679951,115370.0,115360.0,0.50840507]
[1755991563187,1.51579951,115370.0,115360.0,0.50840507]
[1755991563383,1.51779951,115370.0,115360.0,0.50840507]
[1755991563590,1.51779951,115370.0,115360.0,0.48425507]
[1755991564288,1.51879951,115370.0,115360.0,0.39938479]
[1755991567099,1.59905951,115370.0,115360.0,0.39938479]
[1755991567301,0.80745951,115370.0,115360.0,0.39938479]
[1755991567498,1.59881951,115370.0,115360.0,0.39938479]
[1755991568695,1.23801951,115370.0,115360.0,0.39938479]
[1755991568902,1.95961951,115370.0,115360.0,0.39938479]
[1755991569595,1.95961951,115370.0,115360.0,0.40912479]
[1755991569903,1.95761951,115370.0,115360.0,0.40912479]
[1755991570096,1.16525951,115370.0,115360.0,0.40912479]
[1755991570297,1.95757951,115370.0,115360.0,0.43066479]
[1755991572198,1.95657951,115370.0,115360.0,0.43066479]
[1755991572406,1.95757951,115370.0,115360.0,0.1624]
[1755991572704,1.95757951,115370.0,115360.0,0.53984507]
[1755991573705,1.95757951,115370.0,115360.0,0.27158028]
[1755991573906,1.95757951,115370.0,115360.0,0.53984507]
[1755991577609,1.23597951,115370.0,115360.0,0.53984507]
[1755991577801,1.95757951,115370.0,115360.0,0.53984507]
[1755991578001,1.95757951,115370.0,115360.0,0.57226507]
[1755991578799,1.95757951,115370.0,115360.0,0.60270507]
[1755991578800,1.16625951,115370.0,115360.0,0.60270507]
[1755991578999,1.95753951,115370.0,115360.0,0.60270507]
[1755991579912,1.95753951,115370.0,115360.0,0.33444028]
[1755991580207,1.95753951,115370.0,115360.0,0.68064839]
[1755991580411,1.95753951,115370.0,115360.0,0.57146811]
[1755991582602,1.16625951,115370.0,115360.0,0.57146811]
[1755991582810,1.95753951,115370.0,115360.0,0.57146811]
[1755991583207,1.16625951,115370.0,115360.0,0.57146811]
[1755991583407,1.95753951,115370.0,115360.0,0.57146811]
[1755991583611,1.16625951,115370.0,115360.0,0.57146811]
[1755991583811,1.95749951,115370.0,115360.0,0.57146811]
[1755991584312,1.16625951,115370.0,115360.0,0.57146811]
[1755991584510,1.95749951,115370.0,115360.0,0.49352479]
[1755991584711,1.95439951,115370.0,115360.0,0.49352479]
[1755991585006,1.95439951,115370.0,115360.0,0.57148219]
[1755991585711,1.95749951,115370.0,115360.0,0.57148219]
[1755991586013,1.95649951,115370.0,115360.0,0.57148219]
[1755991586514,1.95339951,115370.0,115360.0,0.57148219]
[1755991586715,1.95649951,115370.0,115360.0,0.57148219]
[1755991588016,1.95749951,115370.0,115360.0,0.49352479]
[1755991589917,1.70749951,115370.0,115360.0,0.49352479]
[1755991590515,0.98589951,115370.0,115360.0,0.60270507]
[1755991590716,1.70749951,115370.0,115360.0,0.60270507]
[1755991595711,1.70439951,115370.0,115360.0,0.60270507]
[1755991596323,1.70749951,115370.0,115360.0,0.60270507]
[1755991598625,0.98589951,115370.0,115360.0,0.60270507]
[1755991598823,1.70749951,115370.0,115360.0,0.60270507]
[1755991599430,0.98589951,115370.0,115360.0,0.60270507]
[1755991599735,0.98589951,115370.0,115360.0,0.68941727]
[1755991599935,1.70749951,115370.0,115360.0,0.68941727]
[1755991600233,1.70439951,115370.0,115360.0,0.68941727]
[1755991600434,1.70749951,115370.0,115360.0,0.68941727]
[1755991601636,0.98589951,115370.0,115360.0,0.68941727]
[1755991601936,1.70749951,115370.0,115360.0,0.68941727]
[1755991602136,0.98589951,115370.0,115360.0,0.68941727]
[1755991602434,1.70749951,115370.0,115360.0,0.68941727]
[1755991602636,0.98589951,115370.0,115360.0,0.68941727]
[1755991602937,1.70749951,115370.0,115360.0,0.68941727]
[1755991603133,0.98589951,115370.0,115360.0,0.68941727]
[1755991603437,1.70749951,115370.0,115360.0,0.68941727]
[1755991607829,0.98589951,115370.0,115360.0,0.68941727]
[1755991608041,1.70749951,115370.0,115360.0,0.68941727]
[1755991608242,1.70749951,115370.0,115360.0,0.58023699]
[1755991609842,1.70749951,115370.0,115360.0,0.49352479]
[1755991611444,0.98589951,115370.0,115360.0,0.49352479]
[1755991611741,1.70749951,115370.0,115360.0,0.49352479]
[1755991612643,0.98589951,115370.0,115360.0,0.49352479]
[1755991612840,1.70749951,115370.0,115360.0,0.49352479]
[1755991613044,1.70749951,115370.0,115360.0,0.60272449]
[1755991613544,1.34669951,115370.0,115360.0,0.49352479]
[1755991613841,0.98589951,115370.0,115360.0,0.49352479]
[1755991614044,1.34669951,115370.0,115360.0,0.49352479]
[1755991614743,0.98589951,115370.0,115360.0,0.49352479]
[1755991614943,1.34669951,115370.0,115360.0,0.49352479]
[1755991617142,0.98589951,115370.0,115360.0,0.49352479]
[1755991617349,1.34669951,115370.0,115360.0,0.49352479]
[1755991618655,1.3465501,115370.0,115360.0,0.49352479]
[1755991620350,1.3465501,115370.0,115360.0,0.58023699]
[1755991621146,0.9857501,115370.0,115360.0,0.58023699]
[1755991621347,1.3465501,115370.0,115360.0,0.58023699]
[1755991624753,0.4655066,115370.0,115360.0,0.58023699]
[1755991624954,1.2563866,115370.0,115360.0,0.58023699]
[1755991626254,1.3430913,115370.0,115360.0,0.58023699]
[1755991627855,1.3430913,115370.0,115360.0,0.68942164]
[1755991629458,1.3430913,115370.0,115360.0,0.58023699]
[1755991630157,0.9822913,115370.0,115360.0,0.58023699]
[1755991630349,1.3430913,115370.0,115360.0,0.58023699]
[1755991631858,0.9822913,115370.0,115360.0,0.58023699]
[1755991632060,1.3430913,115370.0,115360.0,0.58023699]
[1755991632559,0.9822913,115370.0,115360.0,0.58023699]
[1755991632756,1.3430913,115370.0,115360.0,0.58023699]
[1755991633460,0.9822913,115370.0,115360.0,0.58023699]
[1755991633760,1.3430913,115370.0,115360.0,0.58023699]
[1755991634862,1.3430913,115370.0,115360.0,0.68940812]
[1755991636558,0.9822913,115370.0,115360.0,0.68940812]
[1755991636763,1.3430913,115370.0,115360.0,0.76738705]
[1755991637063,1.3430913,115370.0,115360.0,0.65821592]
[1755991643466,1.3461913,115370.0,115360.0,0.65821592]
[1755991643853,1.3461913,115370.0,115360.0,0.57150372]
[1755991644569,1.3461913,115370.0,115360.0,0.65821592]
[1755991644759,1.3461913,115370.0,115360.0,0.58023699]
[1755991645867,0.9853913,115370.0,115360.0,0.58023699]
[1755991646168,1.3461913,115370.0,115360.0,0.58023699]
[1755991647269,1.3461913,115370.0,115360.0,0.68941839]
[1755991647670,1.3461913,115370.0,115360.0,0.58023699]
[1755991648866,0.9853913,115370.0,115360.0,0.58023699]
[1755991649066,1.3461913,115370.0,115360.0,0.58023699]
[1755991649772,1.3461913,115370.0,115360.0,0.68942204]
[1755991650371,1.3461913,115370.0,115360.0,0.58023699]
[1755991651472,0.9853913,115370.0,115360.0,0.58023699]
[1755991651659,1.3461913,115370.0,115360.0,0.58023699]
[1755991652775,0.9853913,115370.0,115360.0,0.58023699]
[1755991652976,1.3461913,115370.0,115360.0,0.58023699]
[1755991653568,0.9853913,115370.0,115360.0,0.58023699]
[1755991653773,1.3461913,115370.0,115360.0,0.58023699]
[1755991657476,0.9853913,115370.0,115360.0,0.58023699]
[1755991657677,1.3461913,115370.0,115360.0,0.58023699]
[1755991657977,1.3461913,115370.0,115360.0,0.6894348]
[1755991659176,0.9853913,115370.0,115360.0,0.6894348]
[1755991659471,1.3461913,115370.0,115360.0,0.6894348]
[1755991661377,1.3461913,115370.0,115360.0,0.42117001]
[1755991661578,1.3461913,115370.0,115360.0,0.6894348]
[1755991661778,0.9853913,115370.0,115360.0,0.6894348]
[1755991662079,1.3461913,115370.0,115360.0,0.6894348]
[1755991662479,0.9853913,115370.0,115360.0,0.6894348]
[1755991662666,1.3461913,115370.0,115360.0,0.6894348]
[1755991664473,0.9853913,115370.0,115360.0,0.6894348]
[1755991664679,1.3461913,115370.0,115360.0,0.6894348]
[1755991666979,1.3461913,115370.0,115360.0,0.6027226]
[1755991667871,1.3461913,115370.0,115360.0,0.49352479]
[1755991668572,0.9853913,115370.0,115360.0,0.49352479]
[1755991668783,1.3461913,115370.0,115360.0,0.49352479]
[1755991670278,1.3461913,115370.0,115360.0,0.22526]
[1755991670469,1.3461913,115370.0,115360.0,0.49352479]
[1755991672880,1.3461913,115370.0,115360.0,0.6027284]
[1755991674182,0.9853913,115370.0,115360.0,0.6027284]
[1755991674481,1.3461913,115370.0,115360.0,0.6027284]
[1755991674982,1.3461913,115370.0,115360.0,0.49352479]
[1755991677479,1.3461913,115370.0,115360.0,0.60272761]
[1755991680778,1.3461913,115370.0,115360.0,0.55575761]
[1755991681085,1.3461913,115370.0,115360.0,0.60229761]
[1755991683087,1.3461913,115370.0,115360.0,0.49309479]
[1755991683288,1.7069913,115370.0,115360.0,0.49309479]
[1755991689888,1.7069913,115370.0,115360.0,0.59309479]
[1755991690382,1.7069913,115370.0,115360.0,0.32483]
[1755991690580,1.7069913,115370.0,115360.0,0.59309479]
[1755991693090,1.8069913,115370.0,115360.0,0.59309479]
[1755991693592,1.0853913,115370.0,115360.0,0.59309479]
[1755991693791,1.8069913,115370.0,115360.0,0.59309479]
[1755991696797,1.0853913,115370.0,115360.0,0.59309479]
[1755991696993,1.8069913,115370.0,115360.0,0.59309479]
[1755991699099,1.0853913,115370.0,115360.0,0.59309479]
[1755991699299,1.8069913,115370.0,115360.0,0.59309479]
[1755991699801,1.8069913,115370.0,115360.0,0.32483]
[1755991700099,1.8069913,115370.0,115360.0,0.59309479]
[1755991700403,1.4461913,115370.0,115360.0,0.59309479]
[1755991701402,0.6553113,115370.0,115360.0,0.59309479]
[1755991701604,1.4453913,115370.0,115360.0,0.59309479]
[1755991702402,1.4443913,115370.0,115360.0,0.59309479]
[1755991702602,1.4433913,115370.0,115360.0,0.59409479]
[1755991704198,1.4433913,115370.0,115360.0,0.59309479]
[1755991704405,1.4443913,115370.0,115360.0,0.32483]
[1755991704603,1.4453913,115370.0,115360.0,0.59309479]